[Event "*** Titled Tuesday Blitz"]
[Site "Chess.com"]
[Date "2021.02.02"]
[Round "8"]
[White "VALPARAISO37"]
[Black "MarcoRiehle"]
[Result "0-1"]
[WhiteElo "2478"]
[BlackElo "2708"]
[TimeControl "180+1"]
[EndTime "11:29:58 PST"]
[Termination "MarcoRiehle won on time"]

1. d4 {[%clk 0:03:00.9]} 1... d5 {[%clk 0:02:59.4]} 2. c4 {[%clk 0:03:00.2]}
2... e6 {[%clk 0:02:59.5]} 3. Nc3 {[%clk 0:02:59.4]} 3... c5 {[%clk 0:02:59.1]}
4. cxd5 {[%clk 0:02:58.9]} 4... cxd4 {[%clk 0:02:59.2]} 5. Qa4+ {[%clk 0:02:59]}
5... Bd7 {[%clk 0:02:58.9]} 6. Qxd4 {[%clk 0:02:58.6]} 6... exd5 {[%clk
0:02:58.9]} 7. Nf3 {[%clk 0:02:58.8]} 7... Nc6 {[%clk 0:02:58.6]} 8. Qxd5 {[%clk
0:02:58.9]} 8... Nf6 {[%clk 0:02:58.9]} 9. Qd1 {[%clk 0:02:57.8]} 9... Bc5
{[%clk 0:02:59.4]} 10. a3 {[%clk 0:02:49.1]} 10... Qe7 {[%clk 0:02:59.2]} 11.
Bg5 {[%clk 0:02:45.2]} 11... O-O-O {[%clk 0:02:55.9]} 12. Qc2 {[%clk 0:02:44.2]}
12... Kb8 {[%clk 0:02:43.3]} 13. Nd5 {[%clk 0:02:27.2]} 13... Nxd5 {[%clk
0:02:34.9]} 14. Bxe7 {[%clk 0:02:25]} 14... Bxe7 {[%clk 0:02:35.8]} 15. e3
{[%clk 0:02:20.6]} 15... g5 {[%clk 0:02:33.7]} 16. Rd1 {[%clk 0:02:16.9]} 16...
Be6 {[%clk 0:02:30.3]} 17. Bc4 {[%clk 0:02:16.2]} 17... g4 {[%clk 0:02:23.7]}
18. Nd4 {[%clk 0:02:13.9]} 18... Nxd4 {[%clk 0:02:03.6]} 19. Rxd4 {[%clk
0:02:12.7]} 19... Bf6 {[%clk 0:01:58.8]} 20. O-O {[%clk 0:02:00.7]} 20... Bxd4
{[%clk 0:01:57.1]} 21. exd4 {[%clk 0:02:00.7]} 21... Rc8 {[%clk 0:01:57.5]} 22.
Qe2 {[%clk 0:01:59]} 22... Rhd8 {[%clk 0:01:54.4]} 23. Qe5+ {[%clk 0:01:58.5]}
23... Ka8 {[%clk 0:01:53.7]} 24. Bd3 {[%clk 0:01:52.6]} 24... a6 {[%clk
0:01:49.3]} 25. Be4 {[%clk 0:01:52.3]} 25... Ka7 {[%clk 0:01:43.7]} 26. g3
{[%clk 0:01:47.8]} 26... Nb6 {[%clk 0:01:41.4]} 27. Bxh7 {[%clk 0:01:31.3]}
27... Nc4 {[%clk 0:01:39.4]} 28. Qf6 {[%clk 0:01:25.6]} 28... Nd2 {[%clk
0:01:32.8]} 29. b4 {[%clk 0:00:40.4]} 29... Bd5 {[%clk 0:01:28.3]} 30. f4 {[%clk
0:00:38.1]} 30... gxf3 {[%clk 0:01:18.7]} 31. Bd3 {[%clk 0:00:35.2]} 31... Nxf1
{[%clk 0:01:10.7]} 32. Kxf1 {[%clk 0:00:32.1]} 32... Re8 {[%clk 0:01:03]} 33.
Qf4 {[%clk 0:00:27.6]} 33... Rc3 {[%clk 0:00:55.5]} 34. Qd2 {[%clk 0:00:27.6]}
34... Rec8 {[%clk 0:00:49.7]} 35. Kf2 {[%clk 0:00:23.8]} 35... Rxa3 {[%clk
0:00:48.1]} 36. b5 {[%clk 0:00:23.5]} 36... Ra2 {[%clk 0:00:47.4]} 37. Qxa2
{[%clk 0:00:19.4]} 37... Bxa2 {[%clk 0:00:48.3]} 38. bxa6 {[%clk 0:00:19.6]}
38... bxa6 {[%clk 0:00:48.1]} 39. Kxf3 {[%clk 0:00:20]} 39... Bd5+ {[%clk
0:00:48.4]} 40. Kf4 {[%clk 0:00:19.9]} 40... a5 {[%clk 0:00:48.9]} 41. h4 {[%clk
0:00:20.3]} 41... a4 {[%clk 0:00:48.7]} 42. Bb1 {[%clk 0:00:19.9]} 42... a3
{[%clk 0:00:48.9]} 43. g4 {[%clk 0:00:19.8]} 43... a2 {[%clk 0:00:49]} 44. Bxa2
{[%clk 0:00:20.5]} 44... Bxa2 {[%clk 0:00:49.4]} 45. Ke5 {[%clk 0:00:20.4]}
45... Rg8 {[%clk 0:00:47.4]} 46. g5 {[%clk 0:00:20.6]} 46... Rh8 {[%clk
0:00:47.9]} 47. g6 {[%clk 0:00:20.3]} 47... fxg6 {[%clk 0:00:48.8]} 48. Kf6
{[%clk 0:00:20.5]} 48... Rxh4 {[%clk 0:00:48.9]} 49. d5 {[%clk 0:00:20.2]} 49...
Rd4 {[%clk 0:00:48.6]} 50. d6 {[%clk 0:00:19.6]} 50... Rxd6+ {[%clk 0:00:49.5]}
51. Ke7 {[%clk 0:00:19.4]} 51... Re6+ {[%clk 0:00:50.1]} 52. Kf7 {[%clk
0:00:20.1]} 52... g5 {[%clk 0:00:50.7]} 0-1

[Event "*** Titled Tuesday Blitz"]
[Site "Chess.com"]
[Date "2021.02.02"]
[Round "8"]
[White "IljaJoke"]
[Black "chess4ever007"]
[Result "0-1"]
[WhiteElo "2490"]
[BlackElo "2388"]
[TimeControl "180+1"]
[EndTime "11:29:58 PST"]
[Termination "chess4ever007 won on time"]

1. d4 {[%clk 0:02:59.5]} 1... Nf6 {[%clk 0:02:58.4]} 2. c4 {[%clk 0:02:58.7]}
2... g6 {[%clk 0:02:58.2]} 3. Nc3 {[%clk 0:02:58.2]} 3... Bg7 {[%clk 0:02:57.2]}
4. e4 {[%clk 0:02:57.9]} 4... d6 {[%clk 0:02:57.7]} 5. Be2 {[%clk 0:02:57.9]}
5... O-O {[%clk 0:02:55.3]} 6. Be3 {[%clk 0:02:57.1]} 6... c6 {[%clk 0:02:52.1]}
7. g4 {[%clk 0:02:50.8]} 7... c5 {[%clk 0:02:48.2]} 8. g5 {[%clk 0:02:48.1]}
8... Nfd7 {[%clk 0:02:45.3]} 9. d5 {[%clk 0:02:43.1]} 9... b5 {[%clk 0:02:40.7]}
10. Nxb5 {[%clk 0:02:38]} 10... Bxb2 {[%clk 0:02:38.4]} 11. Rb1 {[%clk
0:02:36.1]} 11... Bg7 {[%clk 0:02:38.4]} 12. Bd2 {[%clk 0:02:16]} 12... Na6
{[%clk 0:02:26.8]} 13. h4 {[%clk 0:02:09.6]} 13... Rb8 {[%clk 0:01:50.6]} 14. h5
{[%clk 0:02:02.7]} 14... Nc7 {[%clk 0:01:20.5]} 15. Nxa7 {[%clk 0:01:51.8]}
15... Rxb1 {[%clk 0:01:15.4]} 16. Qxb1 {[%clk 0:01:51]} 16... e6 {[%clk
0:01:04.8]} 17. Nc6 {[%clk 0:01:48.7]} 17... Qe8 {[%clk 0:01:04.1]} 18. Kf1
{[%clk 0:01:18.4]} 18... exd5 {[%clk 0:01:03.3]} 19. exd5 {[%clk 0:01:17.7]}
19... Ne5 {[%clk 0:00:58.4]} 20. Nxe5 {[%clk 0:01:07.7]} 20... Qxe5 {[%clk
0:00:59.3]} 21. Nf3 {[%clk 0:01:07.3]} 21... Qf5 {[%clk 0:00:59.5]} 22. Qb3
{[%clk 0:00:56.7]} 22... Re8 {[%clk 0:00:57.2]} 23. h6 {[%clk 0:00:40.9]} 23...
Bh8 {[%clk 0:00:53]} 24. Rh4 {[%clk 0:00:36.3]} 24... Ba6 {[%clk 0:00:50.6]} 25.
Rf4 {[%clk 0:00:34.4]} 25... Qh3+ {[%clk 0:00:50.3]} 26. Ke1 {[%clk 0:00:29.6]}
26... Nxd5 {[%clk 0:00:41.7]} 27. Rh4 {[%clk 0:00:23]} 27... Qe6 {[%clk
0:00:40.2]} 28. Ng1 {[%clk 0:00:15.6]} 28... Ne7 {[%clk 0:00:33.6]} 29. Be3
{[%clk 0:00:12.6]} 29... Nf5 {[%clk 0:00:32.9]} 30. Rh3 {[%clk 0:00:11.7]} 30...
Nd4 {[%clk 0:00:28.6]} 31. Bxd4 {[%clk 0:00:08.8]} 31... Bxd4 {[%clk 0:00:29.5]}
32. Kf1 {[%clk 0:00:08.5]} 32... d5 {[%clk 0:00:14.1]} 33. Qa4 {[%clk
0:00:04.8]} 33... Bxc4 {[%clk 0:00:12.2]} 34. Bxc4 {[%clk 0:00:03.1]} 34... dxc4
{[%clk 0:00:13.1]} 35. Rf3 {[%clk 0:00:02]} 35... c3 {[%clk 0:00:12.6]} 36. Qa6
{[%clk 0:00:01.6]} 36... Qxa6+ {[%clk 0:00:10.4]} 0-1

[Event "*** Titled Tuesday Blitz"]
[Site "Chess.com"]
[Date "2021.02.02"]
[Round "8"]
[White "GMJustin"]
[Black "verdest"]
[Result "0-1"]
[WhiteElo "2303"]
[BlackElo "2477"]
[TimeControl "180+1"]
[EndTime "11:29:58 PST"]
[Termination "verdest won on time"]

1. d4 {[%clk 0:02:48.4]} 1... Nf6 {[%clk 0:02:59.5]} 2. c4 {[%clk 0:02:47.5]}
2... e6 {[%clk 0:02:58.8]} 3. Nf3 {[%clk 0:02:41.4]} 3... d5 {[%clk 0:02:59.2]}
4. Nc3 {[%clk 0:02:40.6]} 4... Bb4 {[%clk 0:02:58.7]} 5. Qc2 {[%clk 0:02:36.9]}
5... c5 {[%clk 0:02:50.9]} 6. cxd5 {[%clk 0:02:27.9]} 6... exd5 {[%clk
0:02:50.5]} 7. dxc5 {[%clk 0:02:12.1]} 7... d4 {[%clk 0:02:42.4]} 8. a3 {[%clk
0:02:09]} 8... Bxc5 {[%clk 0:02:37.7]} 9. Na4 {[%clk 0:01:13.4]} 9... Be7 {[%clk
0:02:19.2]} 10. Nxd4 {[%clk 0:01:10.9]} 10... O-O {[%clk 0:02:19.1]} 11. e3
{[%clk 0:01:09.5]} 11... Qd5 {[%clk 0:01:45.1]} 12. Nc3 {[%clk 0:01:04.8]} 12...
Qg5 {[%clk 0:01:33.9]} 13. e4 {[%clk 0:00:57.4]} 13... Qg6 {[%clk 0:01:23.1]}
14. f3 {[%clk 0:00:56.9]} 14... Nc6 {[%clk 0:01:13.4]} 15. Nxc6 {[%clk
0:00:54.9]} 15... bxc6 {[%clk 0:01:14.1]} 16. Bd3 {[%clk 0:00:48.8]} 16... Nd7
{[%clk 0:01:03.7]} 17. O-O {[%clk 0:00:41.7]} 17... Ne5 {[%clk 0:00:57.9]} 18.
Bf4 {[%clk 0:00:32.6]} 18... Nxd3 {[%clk 0:00:46]} 19. Qxd3 {[%clk 0:00:32.6]}
19... Rd8 {[%clk 0:00:41.8]} 20. Qe2 {[%clk 0:00:29.4]} 20... Be6 {[%clk
0:00:41.1]} 21. Rfd1 {[%clk 0:00:27.8]} 21... h5 {[%clk 0:00:40.8]} 22. Be3
{[%clk 0:00:22.2]} 22... h4 {[%clk 0:00:37.5]} 23. Rxd8+ {[%clk 0:00:21]} 23...
Rxd8 {[%clk 0:00:36.8]} 24. Bxa7 {[%clk 0:00:20.8]} 24... h3 {[%clk 0:00:36.1]}
25. g3 {[%clk 0:00:20.7]} 25... c5 {[%clk 0:00:29.2]} 26. Qf2 {[%clk 0:00:20.2]}
26... Qh5 {[%clk 0:00:25.9]} 27. Rd1 {[%clk 0:00:17.3]} 27... Rxd1+ {[%clk
0:00:23.1]} 28. Nxd1 {[%clk 0:00:16.8]} 28... Qe5 {[%clk 0:00:20.3]} 29. Nc3
{[%clk 0:00:15.9]} 29... Bc4 {[%clk 0:00:15]} 30. a4 {[%clk 0:00:15]} 30... Qc7
{[%clk 0:00:12.9]} 31. b3 {[%clk 0:00:08.7]} 31... Ba6 {[%clk 0:00:08.2]} 32.
Nd5 {[%clk 0:00:04.6]} 32... Qxa7 {[%clk 0:00:08.3]} 33. Nxe7+ {[%clk
0:00:02.3]} 33... Qxe7 {[%clk 0:00:09.2]} 34. Qe3 {[%clk 0:00:01.6]} 34... c4
{[%clk 0:00:09]} 0-1

[Event "*** Titled Tuesday Blitz"]
[Site "Chess.com"]
[Date "2021.02.02"]
[Round "8"]
[White "Azerichess"]
[Black "TimofeevAr"]
[Result "1/2-1/2"]
[WhiteElo "3001"]
[BlackElo "2875"]
[TimeControl "180+1"]
[EndTime "11:29:59 PST"]
[Termination "Game drawn by repetition"]

1. d4 {[%clk 0:02:51.7]} 1... d5 {[%clk 0:02:59.4]} 2. c4 {[%clk 0:02:49.8]}
2... dxc4 {[%clk 0:02:59.4]} 3. Nf3 {[%clk 0:02:47.3]} 3... Nf6 {[%clk
0:02:58.6]} 4. e3 {[%clk 0:02:47.3]} 4... e6 {[%clk 0:02:58.9]} 5. Bxc4 {[%clk
0:02:47.7]} 5... c5 {[%clk 0:02:57.8]} 6. O-O {[%clk 0:02:48]} 6... a6 {[%clk
0:02:58.1]} 7. b3 {[%clk 0:02:48.1]} 7... cxd4 {[%clk 0:02:55.2]} 8. Nxd4 {[%clk
0:02:47.5]} 8... Bd6 {[%clk 0:02:54.6]} 9. Bb2 {[%clk 0:02:46.4]} 9... O-O
{[%clk 0:02:54.7]} 10. Nd2 {[%clk 0:02:45.7]} 10... Qe7 {[%clk 0:02:54.6]} 11.
Rc1 {[%clk 0:02:42.4]} 11... e5 {[%clk 0:02:53.9]} 12. N4f3 {[%clk 0:02:39.3]}
12... Bg4 {[%clk 0:02:51.6]} 13. h3 {[%clk 0:02:36.2]} 13... Bh5 {[%clk
0:02:50.5]} 14. g4 {[%clk 0:02:36.3]} 14... Bg6 {[%clk 0:02:50.4]} 15. Nh4
{[%clk 0:02:34.5]} 15... Nc6 {[%clk 0:02:46.6]} 16. Qf3 {[%clk 0:02:33.8]} 16...
Ba3 {[%clk 0:02:35.5]} 17. Bxa3 {[%clk 0:02:23.7]} 17... Qxa3 {[%clk 0:02:35.5]}
18. Nxg6 {[%clk 0:02:18.5]} 18... hxg6 {[%clk 0:02:35.3]} 19. g5 {[%clk
0:02:18.1]} 19... Nd7 {[%clk 0:02:35.3]} 20. Ne4 {[%clk 0:02:14.2]} 20... Nb6
{[%clk 0:02:28.4]} 21. h4 {[%clk 0:02:05.2]} 21... Qe7 {[%clk 0:02:08.6]} 22. h5
{[%clk 0:01:55.4]} 22... Nxc4 {[%clk 0:02:07.8]} 23. Rxc4 {[%clk 0:01:54.5]}
23... Rad8 {[%clk 0:02:02.8]} 24. Kh2 {[%clk 0:01:46.3]} 24... Qe6 {[%clk
0:01:57.7]} 25. Nc5 {[%clk 0:01:40.3]} 25... Qe7 {[%clk 0:01:51.1]} 26. Nxb7
{[%clk 0:01:26.8]} 26... Qxb7 {[%clk 0:01:50.5]} 27. Qxc6 {[%clk 0:01:26.9]}
27... Qe7 {[%clk 0:01:48.4]} 28. hxg6 {[%clk 0:01:10.3]} 28... Qxg5 {[%clk
0:01:47.9]} 29. gxf7+ {[%clk 0:01:08.2]} 29... Rxf7 {[%clk 0:01:47]} 30. Qg2
{[%clk 0:01:08.7]} 30... Qh5+ {[%clk 0:01:39.9]} 31. Qh3 {[%clk 0:01:07.6]}
31... Qe2 {[%clk 0:01:31.9]} 32. Kg1 {[%clk 0:00:57.3]} 32... Qxa2 {[%clk
0:01:30.6]} 33. Rh4 {[%clk 0:00:56.5]} 33... Kf8 {[%clk 0:01:27.1]} 34. Rh8+
{[%clk 0:00:56.1]} 34... Ke7 {[%clk 0:01:27.3]} 35. Rxd8 {[%clk 0:00:37.9]}
35... Kxd8 {[%clk 0:01:26.8]} 36. Rd1+ {[%clk 0:00:23.1]} 36... Kc7 {[%clk
0:01:25.3]} 37. Rc1+ {[%clk 0:00:22.1]} 37... Kd6 {[%clk 0:01:19.3]} 38. Rd1+
{[%clk 0:00:21.7]} 38... Kc7 {[%clk 0:01:19.3]} 39. Rc1+ {[%clk 0:00:15.3]}
39... Kd6 {[%clk 0:01:19.3]} 40. Qg3 {[%clk 0:00:15.8]} 40... Qxb3 {[%clk
0:01:11.3]} 41. Qg6+ {[%clk 0:00:16.1]} 41... Rf6 {[%clk 0:01:11.1]} 42. Qxg7
{[%clk 0:00:16.3]} 42... Qf7 {[%clk 0:01:09.2]} 43. Qxf7 {[%clk 0:00:12.5]}
43... Rxf7 {[%clk 0:01:09.3]} 44. Ra1 {[%clk 0:00:13.4]} 44... Ra7 {[%clk
0:01:08.1]} 45. Ra5 {[%clk 0:00:13.5]} 45... e4 {[%clk 0:01:07.1]} 46. Kg2
{[%clk 0:00:13]} 46... Kc6 {[%clk 0:01:07.4]} 47. Kg3 {[%clk 0:00:12.6]} 47...
Kb6 {[%clk 0:01:07.6]} 48. Re5 {[%clk 0:00:12.7]} 48... a5 {[%clk 0:01:07.3]}
49. Rxe4 {[%clk 0:00:13.1]} 49... a4 {[%clk 0:01:07.7]} 50. Rb4+ {[%clk
0:00:13.3]} 50... Kc5 {[%clk 0:01:08.1]} 51. Rb1 {[%clk 0:00:14.2]} 51... a3
{[%clk 0:01:08.4]} 52. f4 {[%clk 0:00:14.1]} 52... a2 {[%clk 0:01:08.4]} 53. Ra1
{[%clk 0:00:14.5]} 53... Kd5 {[%clk 0:01:07]} 54. Kg4 {[%clk 0:00:14.5]} 54...
Ke4 {[%clk 0:01:06.7]} 55. f5 {[%clk 0:00:14.9]} 55... Kxe3 {[%clk 0:01:05]} 56.
f6 {[%clk 0:00:15.1]} 56... Kd3 {[%clk 0:01:00.3]} 57. f7 {[%clk 0:00:14.3]}
57... Rxf7 {[%clk 0:00:59.6]} 58. Rxa2 {[%clk 0:00:14.5]} 58... Rg7+ {[%clk
0:00:59.7]} 59. Kf5 {[%clk 0:00:13.9]} 59... Rf7+ {[%clk 0:00:59.9]} 60. Kg4
{[%clk 0:00:14.2]} 60... Rg7+ {[%clk 0:01:00]} 61. Kf5 {[%clk 0:00:14.8]} 61...
Rf7+ {[%clk 0:01:00.3]} 62. Kg4 {[%clk 0:00:15.1]} 1/2-1/2

[Event "*** Titled Tuesday Blitz"]
[Site "Chess.com"]
[Date "2021.02.02"]
[Round "8"]
[White "azikom"]
[Black "Shepherdboy"]
[Result "1/2-1/2"]
[WhiteElo "2660"]
[BlackElo "2440"]
[TimeControl "180+1"]
[EndTime "11:30:02 PST"]
[Termination "Game drawn by repetition"]

1. d4 {[%clk 0:03:00]} 1... Nf6 {[%clk 0:02:59]} 2. Nf3 {[%clk 0:02:58.7]} 2...
d5 {[%clk 0:02:57.1]} 3. Bf4 {[%clk 0:02:57.9]} 3... c5 {[%clk 0:02:56.5]} 4. e3
{[%clk 0:02:58.1]} 4... Nc6 {[%clk 0:02:55.4]} 5. c3 {[%clk 0:02:54.9]} 5... e6
{[%clk 0:02:55.2]} 6. Nbd2 {[%clk 0:02:54.3]} 6... Bd6 {[%clk 0:02:54.5]} 7. Bg3
{[%clk 0:02:54.3]} 7... O-O {[%clk 0:02:47.5]} 8. Bd3 {[%clk 0:02:53.9]} 8... b6
{[%clk 0:02:40.6]} 9. Qe2 {[%clk 0:02:52]} 9... Bb7 {[%clk 0:02:39.6]} 10. Rd1
{[%clk 0:02:52.4]} 10... Rc8 {[%clk 0:02:31.6]} 11. a3 {[%clk 0:02:51.5]} 11...
h6 {[%clk 0:02:29]} 12. O-O {[%clk 0:02:47]} 12... Bxg3 {[%clk 0:02:28.4]} 13.
hxg3 {[%clk 0:02:46.6]} 13... Qc7 {[%clk 0:02:08.5]} 14. Bb5 {[%clk 0:02:44.2]}
14... Rfd8 {[%clk 0:02:04.8]} 15. Rfe1 {[%clk 0:02:43.5]} 15... g6 {[%clk
0:01:52.5]} 16. Ba4 {[%clk 0:02:32.5]} 16... Kg7 {[%clk 0:01:50.3]} 17. Nf1
{[%clk 0:02:08.7]} 17... Ne4 {[%clk 0:01:46.7]} 18. N3d2 {[%clk 0:02:06.9]}
18... Nf6 {[%clk 0:01:43.1]} 19. f4 {[%clk 0:02:03.4]} 19... Ne7 {[%clk
0:01:40.1]} 20. Qf3 {[%clk 0:01:48.1]} 20... h5 {[%clk 0:01:39.6]} 21. Nh2
{[%clk 0:01:46.9]} 21... Nf5 {[%clk 0:01:37.5]} 22. g4 {[%clk 0:01:30.7]} 22...
hxg4 {[%clk 0:01:35.5]} 23. Nxg4 {[%clk 0:01:30.4]} 23... Nxg4 {[%clk
0:01:24.7]} 24. Qxg4 {[%clk 0:01:30.3]} 24... cxd4 {[%clk 0:01:23.8]} 25. exd4
{[%clk 0:01:29.7]} 25... Rh8 {[%clk 0:01:24]} 26. Nf3 {[%clk 0:01:29]} 26... Rh5
{[%clk 0:01:19.1]} 27. Bc2 {[%clk 0:01:24.4]} 27... Rch8 {[%clk 0:01:18.7]} 28.
Kf2 {[%clk 0:01:22.8]} 28... Ba6 {[%clk 0:01:08.4]} 29. Bxf5 {[%clk 0:01:15.4]}
29... Rxf5 {[%clk 0:01:09.3]} 30. Ke3 {[%clk 0:01:09.4]} 30... Rfh5 {[%clk
0:01:06.3]} 31. Ne5 {[%clk 0:01:06.3]} 31... Qe7 {[%clk 0:01:06.1]} 32. Qg3
{[%clk 0:01:03.3]} 32... Qf6 {[%clk 0:01:03.5]} 33. Rd2 {[%clk 0:00:56.1]} 33...
Bc4 {[%clk 0:01:00.9]} 34. Rf2 {[%clk 0:00:54.7]} 34... Qf5 {[%clk 0:00:57.5]}
35. Kd2 {[%clk 0:00:52.9]} 35... Rh1 {[%clk 0:00:57]} 36. Qg5 {[%clk 0:00:30.5]}
36... Rxe1 {[%clk 0:00:47.9]} 37. Qxf5 {[%clk 0:00:29.8]} 37... gxf5 {[%clk
0:00:47.4]} 38. Kxe1 {[%clk 0:00:29.5]} 38... Rh1+ {[%clk 0:00:45.6]} 39. Kd2
{[%clk 0:00:29.5]} 39... Rb1 {[%clk 0:00:44.4]} 40. Kc2 {[%clk 0:00:29]} 40...
Rg1 {[%clk 0:00:42.9]} 41. Nxc4 {[%clk 0:00:23.7]} 41... dxc4 {[%clk 0:00:42]}
42. b3 {[%clk 0:00:22.3]} 42... cxb3+ {[%clk 0:00:42.3]} 43. Kxb3 {[%clk
0:00:22.4]} 43... Kf6 {[%clk 0:00:39.2]} 44. c4 {[%clk 0:00:21.5]} 44... Rb1+
{[%clk 0:00:35.7]} 45. Kc3 {[%clk 0:00:21.2]} 45... Rc1+ {[%clk 0:00:31.3]} 46.
Kb4 {[%clk 0:00:19]} 46... Rd1 {[%clk 0:00:28.6]} 47. Kc3 {[%clk 0:00:18.3]}
47... Rc1+ {[%clk 0:00:28.8]} 48. Kb4 {[%clk 0:00:18.5]} 48... Rd1 {[%clk
0:00:28.9]} 49. Kc3 {[%clk 0:00:18.3]} 49... Rc1+ {[%clk 0:00:28.7]} 1/2-1/2

[Event "*** Titled Tuesday Blitz"]
[Site "Chess.com"]
[Date "2021.02.02"]
[Round "8"]
[White "Legendinunknown"]
[Black "Sippp"]
[Result "0-1"]
[WhiteElo "2585"]
[BlackElo "2773"]
[TimeControl "180+1"]
[EndTime "11:30:03 PST"]
[Termination "Sippp won by resignation"]

1. d4 {[%clk 0:03:00.9]} 1... d6 {[%clk 0:02:58.1]} 2. c4 {[%clk 0:03:00.9]}
2... e5 {[%clk 0:02:56.9]} 3. Nf3 {[%clk 0:02:59.3]} 3... e4 {[%clk 0:02:56.1]}
4. Ng5 {[%clk 0:02:58.7]} 4... f5 {[%clk 0:02:55.9]} 5. Nc3 {[%clk 0:02:56.6]}
5... Be7 {[%clk 0:02:54.4]} 6. Nh3 {[%clk 0:02:54.1]} 6... c6 {[%clk 0:02:52.7]}
7. Nf4 {[%clk 0:02:52]} 7... Nf6 {[%clk 0:02:51.5]} 8. g3 {[%clk 0:02:49.1]}
8... O-O {[%clk 0:02:48.9]} 9. h4 {[%clk 0:02:48.8]} 9... Na6 {[%clk 0:02:47.6]}
10. Bg2 {[%clk 0:02:43.5]} 10... Nc7 {[%clk 0:02:46.7]} 11. b3 {[%clk
0:02:38.7]} 11... Ne6 {[%clk 0:02:44.3]} 12. Nxe6 {[%clk 0:02:33]} 12... Bxe6
{[%clk 0:02:43.3]} 13. Bf4 {[%clk 0:02:32.9]} 13... d5 {[%clk 0:02:30.3]} 14.
cxd5 {[%clk 0:02:28.5]} 14... Bb4 {[%clk 0:01:41.8]} 15. Bd2 {[%clk 0:02:11.8]}
15... Bxc3 {[%clk 0:01:41]} 16. Bxc3 {[%clk 0:02:10]} 16... Nxd5 {[%clk
0:01:40.5]} 17. Bd2 {[%clk 0:02:07.2]} 17... f4 {[%clk 0:01:36.2]} 18. gxf4
{[%clk 0:01:57]} 18... Nxf4 {[%clk 0:01:35]} 19. Bxf4 {[%clk 0:01:57.9]} 19...
Rxf4 {[%clk 0:01:33.8]} 20. Qd2 {[%clk 0:01:57.1]} 20... Rxh4 {[%clk 0:01:28]}
21. O-O-O {[%clk 0:01:56.8]} 21... Bd5 {[%clk 0:01:22.9]} 22. Qe3 {[%clk
0:01:46.8]} 22... Qe7 {[%clk 0:00:53.1]} 23. f3 {[%clk 0:01:26.7]} 23... Re8
{[%clk 0:00:40]} 24. f4 {[%clk 0:01:13.1]} 24... Rxh1 {[%clk 0:00:31.5]} 25.
Rxh1 {[%clk 0:01:14]} 25... a5 {[%clk 0:00:30.7]} 26. f5 {[%clk 0:01:01.9]}
26... Qa3+ {[%clk 0:00:18.8]} 27. Kb1 {[%clk 0:00:59.9]} 27... a4 {[%clk
0:00:18.3]} 28. Rh3 {[%clk 0:00:38.6]} 28... axb3 {[%clk 0:00:17.6]} 29. axb3
{[%clk 0:00:38.1]} 29... Ra8 {[%clk 0:00:17.2]} 30. Qc3 {[%clk 0:00:22.1]} 30...
Qa2+ {[%clk 0:00:16.2]} 31. Kc1 {[%clk 0:00:22.7]} 31... Qxe2 {[%clk 0:00:16.3]}
32. Rg3 {[%clk 0:00:23.3]} 32... Ra2 {[%clk 0:00:09.2]} 33. f6 {[%clk
0:00:19.7]} 33... g6 {[%clk 0:00:08.6]} 34. f7+ {[%clk 0:00:19.2]} 34... Kxf7
{[%clk 0:00:08.2]} 35. Bh3 {[%clk 0:00:18.9]} 35... Qf2 {[%clk 0:00:07.3]} 36.
Kb1 {[%clk 0:00:17.9]} 36... Re2 {[%clk 0:00:06.6]} 37. Be6+ {[%clk 0:00:11.7]}
37... Kxe6 {[%clk 0:00:06.2]} 0-1

[Event "*** Titled Tuesday Blitz"]
[Site "Chess.com"]
[Date "2021.02.02"]
[Round "8"]
[White "Sokoloco"]
[Black "queen_iryna"]
[Result "1-0"]
[WhiteElo "2478"]
[BlackElo "2322"]
[TimeControl "180+1"]
[EndTime "11:30:06 PST"]
[Termination "Sokoloco won on time"]

1. b3 {[%clk 0:03:00.9]} 1... e5 {[%clk 0:02:58.1]} 2. Bb2 {[%clk 0:03:00.1]}
2... Nc6 {[%clk 0:02:57.6]} 3. e3 {[%clk 0:03:00.2]} 3... Nf6 {[%clk 0:02:56.9]}
4. Bb5 {[%clk 0:03:00.4]} 4... Bd6 {[%clk 0:02:56.9]} 5. Na3 {[%clk 0:03:00.8]}
5... a6 {[%clk 0:02:50.1]} 6. Bxc6 {[%clk 0:02:58.5]} 6... dxc6 {[%clk 0:02:51]}
7. Nc4 {[%clk 0:02:58.7]} 7... Qe7 {[%clk 0:02:45.9]} 8. Ne2 {[%clk 0:02:56]}
8... O-O {[%clk 0:02:41]} 9. O-O {[%clk 0:02:54.1]} 9... Bd7 {[%clk 0:02:32.1]}
10. f4 {[%clk 0:02:48.5]} 10... e4 {[%clk 0:02:20]} 11. h3 {[%clk 0:02:33.2]}
11... b5 {[%clk 0:01:57]} 12. Ne5 {[%clk 0:02:29.5]} 12... Nd5 {[%clk
0:01:51.6]} 13. Nxd7 {[%clk 0:02:17.5]} 13... Qxd7 {[%clk 0:01:51]} 14. f5
{[%clk 0:02:17.1]} 14... f6 {[%clk 0:01:45]} 15. Nd4 {[%clk 0:02:14.1]} 15...
Be5 {[%clk 0:01:35.2]} 16. Rb1 {[%clk 0:02:08.5]} 16... Bxd4 {[%clk 0:01:26.5]}
17. Bxd4 {[%clk 0:02:06.8]} 17... Ne7 {[%clk 0:01:26.4]} 18. Qg4 {[%clk
0:02:02.7]} 18... Kh8 {[%clk 0:01:21.9]} 19. Qxe4 {[%clk 0:02:00.9]} 19... Rae8
{[%clk 0:01:19.3]} 20. Qf3 {[%clk 0:01:53.6]} 20... c5 {[%clk 0:01:15.7]} 21.
Bxc5 {[%clk 0:01:49.3]} 21... Qxd2 {[%clk 0:01:16.3]} 22. Rf2 {[%clk 0:01:35.6]}
22... Qc3 {[%clk 0:01:01.4]} 23. Bd4 {[%clk 0:01:33]} 23... Qc6 {[%clk
0:00:56.4]} 24. Qxc6 {[%clk 0:01:31.3]} 24... Nxc6 {[%clk 0:00:57.3]} 25. Rd2
{[%clk 0:01:26.4]} 25... Nxd4 {[%clk 0:00:42.8]} 26. exd4 {[%clk 0:01:25]} 26...
Re4 {[%clk 0:00:42.3]} 27. c4 {[%clk 0:01:11.7]} 27... b4 {[%clk 0:00:41.2]} 28.
d5 {[%clk 0:01:07.9]} 28... h5 {[%clk 0:00:30.3]} 29. c5 {[%clk 0:00:57.4]}
29... Rd8 {[%clk 0:00:28.6]} 30. d6 {[%clk 0:00:46.7]} 30... cxd6 {[%clk
0:00:28.1]} 31. cxd6 {[%clk 0:00:45.9]} 31... Kh7 {[%clk 0:00:22.7]} 32. d7
{[%clk 0:00:40.7]} 32... Re7 {[%clk 0:00:22.4]} 33. Rbd1 {[%clk 0:00:41.2]}
33... Kh6 {[%clk 0:00:22]} 34. h4 {[%clk 0:00:41.5]} 34... g5 {[%clk 0:00:19.8]}
35. fxg6 {[%clk 0:00:35.7]} 35... Kxg6 {[%clk 0:00:19.9]} 36. Rd5 {[%clk
0:00:36.3]} 36... Re4 {[%clk 0:00:10.1]} 37. g3 {[%clk 0:00:34.1]} 37... Re5
{[%clk 0:00:09.7]} 38. Kf2 {[%clk 0:00:33]} 38... Kf5 {[%clk 0:00:07.7]} 39. Rd6
{[%clk 0:00:29.8]} 39... Re7 {[%clk 0:00:06.1]} 40. Kf3 {[%clk 0:00:25]} 40...
a5 {[%clk 0:00:05.3]} 41. R1d5+ {[%clk 0:00:24.7]} 41... Re5 {[%clk 0:00:05.3]}
42. Rd4 {[%clk 0:00:21.1]} 42... Kg6 {[%clk 0:00:03.3]} 43. Rf4 {[%clk
0:00:20.3]} 1-0